[Event "Gaprindashvili Cup Open II Stage 2020"]
[Site "Online"]
[Date "2020.11.08"]
[Round "3.18"]
[White "Gogolashvili, Giorgi"]
[Black "Chanturia, Lasha"]
[Result "0-1"]
[ECO "C32"]
[WhiteElo "1448"]
[BlackElo "1761"]
[Annotator "NA RC"]
[PlyCount "96"]
[EventDate "2020.11.04"]
[EventType "swiss"]
[SourceTitle "playchess.com"]
[Source "ChessBase"]
[SourceQuality "1"]
[TimeControl "1500+5"]

1. e4 {[%emt 0:00:02]} e5 {[%emt 0:01:40]} 2. f4 {[%emt 0:01:10]} d5 {[%emt 0:00:08]} 3. exd5 {[%emt 0:00:14]} e4 {[%emt 0:00:07]} 4. Nc3 {[%emt 0:00:02]} Nf6 {[%emt 0:00:05]} 5. d3 {[%emt 0:00:22]} Bb4 {[%emt 0:00:07]} 6. Bd2 {[%emt 0:01:02]} e3 {[%emt 0:00:03]} 7. Bxe3 {[%emt 0:00:04]} Nxd5 {[%emt 0:00:03]} 8. Bd2 {[%emt 0:01:20]} Bxc3 {[%emt 0:00:45]} 9. bxc3 {[%emt 0:00:06]} Qf6 {[%emt 0:00:07]} 10. Qe2+ {[%emt 0:00:58]} Be6 {[%emt 0:00:10]} 11. Qe5 {[%emt 0:00:13]} Nd7 {[%emt 0:02:01]} 12. Qxf6 {[%emt 0:00:15]} N7xf6 {[%emt 0:00:03]} 13. c4 {[%emt 0:00:03]} Nb6 {[%emt 0:00:07]} 14. Nf3 {[%emt 0:00:06]} O-O {[%emt 0:00:09]} 15. Be2 {[%emt 0:00:17]} Rfe8 {[%emt 0:00:04]} 16. Ne5 {[%emt 0:01:02]} Rad8 {[%emt 0:00:55]} 17. O-O {[%emt 0:00:12]} Nxc4 {[%emt 0:00:17]} 18. Nxc4 {[%emt 0:00:29]} Bxc4 {[%emt 0:00:06]} 19. Bf3 {[%emt 0:00:02]} Bd5 {[%emt 0:00:25]} 20. Bxd5 {[%emt 0:00:13]} Nxd5 {[%emt 0:00:18]} 21. Rfe1 {[%emt 0:00:02]} f6 {[%emt 0:00:54]} 22. Kf2 {[%emt 0:00:10]} Kf7 {[%emt 0:00:04]} 23. Kf3 {[%emt 0:00:39]} c5 {[%emt 0:01:01]} 24. Rab1 {[%emt 0:00:22]} b6 {[%emt 0:00:17]} 25. a4 {[%emt 0:00:33]} a5 {[%emt 0:00:55]} 26. Rb5 {[%emt 0:02:43]} Rxe1 {[%emt 0:00:56]} 27. Bxe1 {[%emt 0:00:22]} Rd6 {[%emt 0:00:06]} 28. Rb1 {[%emt 0:01:38]} Nb4 {[%emt 0:00:42]} 29. Bxb4 {[%emt 0:00:42]} cxb4 {[%emt 0:00:07]} 30. Ke3 {[%emt 0:00:30]} Rc6 {[%emt 0:00:26]} 31. Kd2 {[%emt 0:00:07]} Ke6 {[%emt 0:01:01]} 32. Re1+ {[%emt 0:00:39]} Kd7 {[%emt 0:00:05]} 33. g4 {[%emt 0:01:03]} Rc3 {[%emt 0:00:27]} 34. f5 {[%emt 0:01:11]} Ra3 {[%emt 0:01:30]} 35. Re6 {[%emt 0:00:06]} Rxa4 {[%emt 0:00:22]} 36. Rxb6 {[%emt 0:00:07]} Kc7 {[%emt 0:01:57]} 37. Ra6 {[%emt 0:01:50]} Kb7 {[%emt 0:00:14]} 38. Re6 {[%emt 0:00:09]} Ra1 {[%emt 0:00:26]} 39. Re7+ {[%emt 0:00:05]} Kb6 {[%emt 0:00:03]} 40. Rxg7 {[%emt 0:00:05]} a4 {[%emt 0:00:01]} 41. g5 {[%emt 0:00:20]} fxg5 {[%emt 0:00:09]} 42. Ke2 {[%emt 0:00:09]} a3 {[%emt 0:00:42]} 43. Rg8 {[%emt 0:00:43]} Rc1 {[%emt 0:01:45]} 44. f6 {[%emt 0:01:59]} a2 {[%emt 0:01:49]} 45. f7 {[%emt 0:01:12]} a1=Q {[%emt 0:00:21]} 46. Rb8+ {[%emt 0:00:26]} Kc6 {[%emt 0:00:06]} 47. Rc8+ {[%emt 0:00:05]} Kd7 {[%emt 0:00:13]} 48. f8=Q {[%emt 0:00:09]} Re1+ {[%emt 0:00:04]} 0-1

[Event "Gaprindashvili Cup Open II Stage 2020"]
[Site "Online"]
[Date "2020.11.08"]
[Round "4.10"]
[White "Tsereteli, Tornike"]
[Black "Adamia, Jaba"]
[Result "0-1"]
[ECO "B22"]
[WhiteElo "1765"]
[BlackElo "1899"]
[Annotator "NA RC"]
[PlyCount "112"]
[EventDate "2020.11.04"]
[EventType "swiss"]
[SourceTitle "playchess.com"]
[Source "ChessBase"]
[SourceQuality "1"]
[TimeControl "1500+5"]

1. e4 {[%emt 0:00:03]} c5 {[%emt 0:00:03]} 2. c3 {[%emt 0:00:01]} d5 {[%emt 0:00:07]} 3. exd5 {[%emt 0:00:01]} Qxd5 {[%emt 0:00:08]} 4. d4 {[%emt 0:00:02]} Nc6 {[%emt 0:00:14]} 5. Nf3 {[%emt 0:00:04]} Nf6 {[%emt 0:00:08]} 6. Be3 {[%emt 0:00:03]} cxd4 {[%emt 0:00:04]} 7. cxd4 {[%emt 0:00:02]} e6 {[%emt 0:00:06]} 8. Nc3 {[%emt 0:00:02]} Qd6 {[%emt 0:00:12]} 9. Bd3 {[%emt 0:00:03]} Be7 {[%emt 0:00:35]} 10. O-O {[%emt 0:00:05]} O-O {[%emt 0:00:08]} 11. a3 {[%emt 0:00:02]} b6 {[%emt 0:00:09]} 12. Qe2 {[%emt 0:00:03]} Bb7 {[%emt 0:00:27]} 13. Rad1 {[%emt 0:00:04]} Ng4 {[%emt 0:01:55]} 14. Bxh7+ {[%emt 0:01:12]} Kxh7 {[%emt 0:01:25]} 15. Ne4 {[%emt 0:00:03]} Qd5 {[%emt 0:06:20]} 16. Nfg5+ {[%emt 0:00:03]} Kg8 {[%emt 0:01:26]} 17. Qxg4 {[%emt 0:00:04]} Bxg5 {[%emt 0:00:08]} 18. Nxg5 {[%emt 0:00:18]} Ne7 {[%emt 0:00:12]} 19. Qh3 {[%emt 0:01:25]} Qf5 {[%emt 0:00:16]} 20. Qg3 {[%emt 0:01:05]} Qg6 {[%emt 0:00:55]} 21. Nf3 {[%emt 0:00:05]} Qh5 {[%emt 0:02:29]} 22. Ne5 {[%emt 0:00:48]} Nf5 {[%emt 0:01:52]} 23. Qg4 {[%emt 0:00:13]} Qxg4 {[%emt 0:00:07]} 24. Nxg4 {[%emt 0:00:03]} Rac8 {[%emt 0:00:17]} 25. Rc1 {[%emt 0:00:26]} Rfd8 {[%emt 0:00:21]} 26. Rxc8 {[%emt 0:00:26]} Rxc8 {[%emt 0:00:09]} 27. Ne5 {[%emt 0:00:25]} Rc2 {[%emt 0:00:17]} 28. Nf3 {[%emt 0:02:07]} Rxb2 {[%emt 0:01:02]} 29. Rc1 {[%emt 0:01:40]} Rb3 {[%emt 0:00:10]} 30. Ng5 {[%emt 0:00:13]} Rxa3 {[%emt 0:01:32]} 31. h3 {[%emt 0:00:09]} Nxe3 {[%emt 0:01:27]} 32. fxe3 {[%emt 0:00:12]} Rxe3 {[%emt 0:01:09]} 33. Rc7 {[%emt 0:00:04]} Rg3 {[%emt 0:00:20]} 34. h4 {[%emt 0:01:48]} f6 {[%emt 0:01:06]} 35. Nxe6 {[%emt 0:00:21]} Rxg2+ {[%emt 0:00:25]} 36. Kf1 {[%emt 0:00:03]} Be4 {[%emt 0:00:02]} 37. Rxa7 {[%emt 0:02:17]} Rg4 {[%emt 0:00:05]} 38. Rd7 {[%emt 0:00:13]} Bf5 {[%emt 0:00:08]} 39. d5 {[%emt 0:00:03]} Bxe6 {[%emt 0:00:10]} 40. dxe6 {[%emt 0:00:02]} Re4 {[%emt 0:00:02]} 41. e7 {[%emt 0:00:16]} Kf7 {[%emt 0:00:08]} 42. e8=Q+ {[%emt 0:00:22]} Kxe8 {[%emt 0:00:02]} 43. Rxg7 {[%emt 0:00:02]} Rxh4 {[%emt 0:00:01]} 44. Rb7 {[%emt 0:00:08]} Rb4 {[%emt 0:00:02]} 45. Ke2 {[%emt 0:00:01]} f5 {[%emt 0:00:08]} 46. Kf3 {[%emt 0:00:09]} Kd8 {[%emt 0:00:09]} 47. Rf7 {[%emt 0:00:08]} Rb5 {[%emt 0:00:02]} 48. Kf4 {[%emt 0:00:04]} Rc5 {[%emt 0:00:05]} 49. Rb7 {[%emt 0:00:07]} b5 {[%emt 0:00:04]} 50. Rf7 {[%emt 0:00:43]} Kc8 {[%emt 0:00:10]} 51. Rh7 {[%emt 0:00:46]} Rd5 {[%emt 0:00:04]} 52. Rg7 {[%emt 0:00:04]} b4 {[%emt 0:00:04]} 53. Kg5 {[%emt 0:00:38]} b3 {[%emt 0:00:06]} 54. Kf6 {[%emt 0:00:01]} b2 {[%emt 0:00:09]} 55. Rg1 {[%emt 0:00:03]} Rb5 {[%emt 0:00:01]} 56. Rb1 {[%emt 0:00:03]} f4 {[%emt 0:00:05]} 0-1

[Event "Gaprindashvili Cup Open II Stage 2020"]
[Site "Online"]
[Date "2020.11.08"]
[Round "4.17"]
[White "kiladze, Luka"]
[Black "Kupatadze, Tornike"]
[Result "1-0"]
[ECO "B06"]
[WhiteElo "1786"]
[BlackElo "1657"]
[Annotator "NA RC"]
[PlyCount "49"]
[EventDate "2020.11.04"]
[EventType "swiss"]
[SourceTitle "playchess.com"]
[Source "ChessBase"]
[SourceQuality "1"]
[TimeControl "1500+5"]

1. d4 {[%emt 0:00:02]} g6 {[%emt 0:00:05]} 2. e4 {[%emt 0:00:03]} Bg7 {[%emt 0:00:02]} 3. Nc3 {[%emt 0:00:03]} d6 {[%emt 0:00:01]} 4. Be3 {[%emt 0:00:01]} Nc6 {[%emt 0:00:02]} 5. d5 {[%emt 0:00:01]} Ne5 {[%emt 0:00:19]} 6. f4 {[%emt 0:00:03]} Nd7 {[%emt 0:00:05]} 7. Nf3 {[%emt 0:00:21]} e5 {[%emt 0:00:19]} 8. dxe6 {[%emt 0:00:25]} fxe6 {[%emt 0:00:03]} 9. Bc4 {[%emt 0:00:03]} Nb6 {[%emt 0:00:41]} 10. Bb3 {[%emt 0:00:12]} Nf6 {[%emt 0:00:34]} 11. O-O {[%emt 0:00:12]} O-O {[%emt 0:00:06]} 12. Ng5 {[%emt 0:00:43]} Re8 {[%emt 0:00:59]} 13. f5 {[%emt 0:00:23]} gxf5 {[%emt 0:00:04]} 14. exf5 {[%emt 0:00:04]} d5 {[%emt 0:00:01]} 15. Bxb6 {[%emt 0:00:58]} axb6 {[%emt 0:01:34]} 16. fxe6 {[%emt 0:01:15]} c6 {[%emt 0:01:53]} 17. Qd3 {[%emt 0:01:08]} h6 {[%emt 0:02:20]} 18. Nf7 {[%emt 0:03:05]} Qe7 {[%emt 0:03:00]} 19. Qg6 {[%emt 0:00:07]} h5 {[%emt 0:00:50]} 20. Nh6+ {[%emt 0:00:07]} Kh8 {[%emt 0:00:07]} 21. Rxf6 {[%emt 0:02:32]} Qxf6 {[%emt 0:01:50]} 22. Qxe8+ {[%emt 0:00:07]} Kh7 {[%emt 0:00:02]} 23. Nf7 {[%emt 0:00:02]} Qf4 {[%emt 0:01:08]} 24. Qe7 {[%emt 0:01:30]} Bxe6 {[%emt 0:01:49]} 25. Ng5+ {[%emt 0:00:45]} 1-0

[Event "Gaprindashvili Cup Open II Stage 2020"]
[Site "Online"]
[Date "2020.11.08"]
[Round "4.18"]
[White "Tsanatsqenishvili, Alexandre"]
[Black "Gogolashvili, Giorgi"]
[Result "1-0"]
[ECO "C06"]
[WhiteElo "1702"]
[BlackElo "1448"]
[Annotator "NA RC"]
[PlyCount "121"]
[EventDate "2020.11.04"]
[EventType "swiss"]
[SourceTitle "playchess.com"]
[Source "ChessBase"]
[SourceQuality "1"]
[TimeControl "1500+5"]

1. e4 {[%emt 0:00:02]} e6 {[%emt 0:00:04]} 2. d4 {[%emt 0:00:03]} d5 {[%emt 0:00:02]} 3. Nd2 {[%emt 0:00:03]} Nf6 {[%emt 0:00:03]} 4. e5 {[%emt 0:00:05]} Nfd7 {[%emt 0:00:02]} 5. Bd3 {[%emt 0:00:02]} c5 {[%emt 0:00:02]} 6. c3 {[%emt 0:00:02]} Nc6 {[%emt 0:00:01]} 7. Ne2 {[%emt 0:00:01]} Qb6 {[%emt 0:00:02]} 8. Nf3 {[%emt 0:00:05]} cxd4 {[%emt 0:00:02]} 9. cxd4 {[%emt 0:00:02]} f6 {[%emt 0:00:01]} 10. exf6 {[%emt 0:00:03]} Nxf6 {[%emt 0:00:02]} 11. O-O {[%emt 0:00:02]} Bd6 {[%emt 0:00:01]} 12. Re1 {[%emt 0:01:24]} O-O {[%emt 0:00:04]} 13. Bf4 {[%emt 0:00:14]} Nxd4 {[%emt 0:00:07]} 14. Nfxd4 {[%emt 0:01:38]} e5 {[%emt 0:00:05]} 15. Bg3 {[%emt 0:01:27]} exd4 {[%emt 0:00:04]} 16. Nxd4 {[%emt 0:00:03]} Bxg3 {[%emt 0:00:48]} 17. hxg3 {[%emt 0:00:08]} Ng4 {[%emt 0:00:27]} 18. Re2 {[%emt 0:00:36]} Qh6 {[%emt 0:00:18]} 19. Nf3 {[%emt 0:01:55]} Rxf3 {[%emt 0:00:32]} 20. Re8+ {[%emt 0:00:04]} Rf8 {[%emt 0:00:02]} 21. Bxh7+ {[%emt 0:00:20]} Kxh7 {[%emt 0:05:41]} 22. Rxf8 {[%emt 0:00:04]} Qh2+ {[%emt 0:06:46]} 23. Kf1 {[%emt 0:00:05]} Qh1+ {[%emt 0:00:32]} 24. Ke2 {[%emt 0:00:05]} Qxd1+ {[%emt 0:01:56]} 25. Rxd1 {[%emt 0:00:10]} b6 {[%emt 0:00:25]} 26. Kf3 {[%emt 0:02:14]} Ne5+ {[%emt 0:01:53]} 27. Ke3 {[%emt 0:00:04]} Bb7 {[%emt 0:01:19]} 28. Rxa8 {[%emt 0:01:00]} Bxa8 {[%emt 0:00:05]} 29. Kd4 {[%emt 0:00:03]} Nc4 {[%emt 0:03:16]} 30. b3 {[%emt 0:01:51]} Nd6 {[%emt 0:00:44]} 31. Ke5 {[%emt 0:00:13]} Nf7+ {[%emt 0:00:34]} 32. Ke6 {[%emt 0:01:09]} Kg6 {[%emt 0:00:41]} 33. f4 {[%emt 0:00:12]} Nd8+ {[%emt 0:00:31]} 34. Kd7 {[%emt 0:02:04]} Nc6 {[%emt 0:00:11]} 35. Kd6 {[%emt 0:04:11]} d4 {[%emt 0:00:19]} 36. g4 {[%emt 0:00:31]} Kf6 {[%emt 0:00:05]} 37. a3 {[%emt 0:00:36]} a6 {[%emt 0:00:06]} 38. Rd3 {[%emt 0:00:49]} a5 {[%emt 0:00:05]} 39. Rh3 {[%emt 0:00:31]} Bb7 {[%emt 0:00:07]} 40. Rh8 {[%emt 0:00:25]} d3 {[%emt 0:00:03]} 41. Rh3 {[%emt 0:00:07]} Ne7 {[%emt 0:00:09]} 42. Rxd3 {[%emt 0:00:25]} Bxg2 {[%emt 0:00:02]} 43. Re3 {[%emt 0:00:42]} Nd5 {[%emt 0:00:05]} 44. Re5 {[%emt 0:00:05]} Ne3 {[%emt 0:00:07]} 45. Rxe3 {[%emt 0:00:05]} b5 {[%emt 0:00:03]} 46. Rc3 {[%emt 0:00:06]} Bf1 {[%emt 0:00:03]} 47. a4 {[%emt 0:00:14]} g6 {[%emt 0:00:07]} 48. axb5 {[%emt 0:00:05]} Bxb5 {[%emt 0:00:02]} 49. Rc5 {[%emt 0:00:04]} Be2 {[%emt 0:00:05]} 50. g5+ {[%emt 0:00:13]} Kf7 {[%emt 0:00:02]} 51. Rxa5 {[%emt 0:00:02]} Bf1 {[%emt 0:00:07]} 52. Ra7+ {[%emt 0:00:03]} Kg8 {[%emt 0:00:04]} 53. Ke6 {[%emt 0:00:03]} Bd3 {[%emt 0:00:01]} 54. Kf6 {[%emt 0:00:03]} Bf5 {[%emt 0:00:03]} 55. b4 {[%emt 0:00:06]} Bd3 {[%emt 0:00:04]} 56. Ra8+ {[%emt 0:00:09]} Kh7 {[%emt 0:00:02]} 57. Kf7 {[%emt 0:00:21]} Bc4+ {[%emt 0:00:04]} 58. Kf8 {[%emt 0:00:01]} Bd5 {[%emt 0:00:05]} 59. Ra3 {[%emt 0:00:05]} Bf3 {[%emt 0:00:07]} 60. Rxf3 {[%emt 0:00:04]} Kh8 {[%emt 0:00:02]} 61. Rh3# {[%emt 0:00:02]} 1-0

[Event "Gaprindashvili Cup Open II Stage 2020"]
[Site "Online"]
[Date "2020.11.08"]
[Round "4.19"]
[White "Nemsadze, Daviti"]
[Black "Tsanatsqenishvili, Giorgi"]
[Result "1-0"]
[ECO "E62"]
[WhiteElo "1690"]
[BlackElo "1631"]
[Annotator "NA RC"]
[PlyCount "111"]
[EventDate "2020.11.04"]
[EventType "swiss"]
[SourceTitle "playchess.com"]
[Source "ChessBase"]
[SourceQuality "1"]
[TimeControl "1500+5"]

1. d4 {[%emt 0:00:24]} Nf6 {[%emt 0:00:04]} 2. c4 {[%emt 0:00:03]} g6 {[%emt 0:00:02]} 3. Nf3 {[%emt 0:00:04]} Bg7 {[%emt 0:00:02]} 4. g3 {[%emt 0:00:01]} O-O {[%emt 0:00:01]} 5. Bg2 {[%emt 0:00:02]} d6 {[%emt 0:00:01]} 6. O-O {[%emt 0:00:01]} Nc6 {[%emt 0:00:02]} 7. Nc3 {[%emt 0:00:53]} e5 {[%emt 0:00:10]} 8. d5 {[%emt 0:00:04]} Ne7 {[%emt 0:00:06]} 9. e4 {[%emt 0:00:13]} h6 {[%emt 0:00:11]} 10. h3 {[%emt 0:00:14]} Ne8 {[%emt 0:00:20]} 11. Be3 {[%emt 0:00:16]} f5 {[%emt 0:00:03]} 12. Qd2 {[%emt 0:01:27]} Kh7 {[%emt 0:00:31]} 13. Rae1 {[%emt 0:00:13]} Nf6 {[%emt 0:00:22]} 14. exf5 {[%emt 0:00:41]} Nxf5 {[%emt 0:00:03]} 15. Qc2 {[%emt 0:00:33]} Nxe3 {[%emt 0:00:47]} 16. Rxe3 {[%emt 0:00:15]} Bf5 {[%emt 0:02:52]} 17. Qe2 {[%emt 0:00:37]} g5 {[%emt 0:00:44]} 18. Nd2 {[%emt 0:00:26]} Qd7 {[%emt 0:01:14]} 19. g4 {[%emt 0:00:27]} Bg6 {[%emt 0:00:04]} 20. Nde4 {[%emt 0:00:09]} Nxe4 {[%emt 0:00:32]} 21. Bxe4 {[%emt 0:01:33]} Bxe4 {[%emt 0:00:51]} 22. Nxe4 {[%emt 0:00:19]} Rf4 {[%emt 0:00:15]} 23. Ng3 {[%emt 0:01:17]} Re8 {[%emt 0:00:22]} 24. Nh5 {[%emt 0:01:18]} Rd4 {[%emt 0:00:19]} 25. Rd1 {[%emt 0:01:09]} Rxd1+ {[%emt 0:00:17]} 26. Qxd1 {[%emt 0:00:04]} Rf8 {[%emt 0:00:02]} 27. Qd3+ {[%emt 0:00:18]} Kg8 {[%emt 0:00:03]} 28. Kg2 {[%emt 0:00:14]} Qf7 {[%emt 0:00:16]} 29. Rf3 {[%emt 0:00:13]} Qxf3+ {[%emt 0:01:00]} 30. Qxf3 {[%emt 0:00:04]} Rxf3 {[%emt 0:00:02]} 31. Kxf3 {[%emt 0:00:01]} e4+ {[%emt 0:00:10]} 32. Kxe4 {[%emt 0:00:06]} Bxb2 {[%emt 0:00:03]} 33. Kf5 {[%emt 0:00:08]} Kf7 {[%emt 0:00:02]} 34. f4 {[%emt 0:00:14]} Bc1 {[%emt 0:01:41]} 35. fxg5 {[%emt 0:00:13]} Bxg5 {[%emt 0:00:02]} 36. Ng3 {[%emt 0:00:10]} c6 {[%emt 0:01:26]} 37. Ne4 {[%emt 0:00:13]} Be7 {[%emt 0:00:03]} 38. h4 {[%emt 0:01:10]} cxd5 {[%emt 0:03:48]} 39. cxd5 {[%emt 0:00:04]} b5 {[%emt 0:00:02]} 40. g5 {[%emt 0:00:34]} hxg5 {[%emt 0:00:03]} 41. hxg5 {[%emt 0:00:37]} a5 {[%emt 0:00:31]} 42. g6+ {[%emt 0:00:20]} Kg7 {[%emt 0:00:03]} 43. Ke6 {[%emt 0:00:05]} Bf8 {[%emt 0:00:48]} 44. Nxd6 {[%emt 0:00:55]} b4 {[%emt 0:00:19]} 45. Nf5+ {[%emt 0:00:18]} Kxg6 {[%emt 0:00:38]} 46. d6 {[%emt 0:00:03]} Bxd6 {[%emt 0:00:10]} 47. Nxd6 {[%emt 0:00:02]} a4 {[%emt 0:00:09]} 48. Nc4 {[%emt 0:00:19]} a3 {[%emt 0:00:12]} 49. Nd2 {[%emt 0:00:15]} Kg5 {[%emt 0:00:05]} 50. Kd5 {[%emt 0:00:10]} Kf4 {[%emt 0:00:01]} 51. Kc4 {[%emt 0:00:02]} Ke3 {[%emt 0:00:02]} 52. Nb1 {[%emt 0:00:05]} Ke4 {[%emt 0:00:06]} 53. Kxb4 {[%emt 0:00:02]} Kd5 {[%emt 0:00:02]} 54. Nxa3 {[%emt 0:00:02]} Kc6 {[%emt 0:00:02]} 55. Nb5 {[%emt 0:00:02]} Kb6 {[%emt 0:00:01]} 56. a4 {[%emt 0:00:01]} 1-0

[Event "Gaprindashvili Cup Open II Stage 2020"]
[Site "Online"]
[Date "2020.11.08"]
[Round "5.13"]
[White "Kachkachishvili, Lasha"]
[Black "kiladze, Luka"]
[Result "0-1"]
[ECO "A48"]
[WhiteElo "1681"]
[BlackElo "1786"]
[Annotator "NA RC"]
[PlyCount "60"]
[EventDate "2020.11.04"]
[EventType "swiss"]
[SourceTitle "playchess.com"]
[Source "ChessBase"]
[SourceQuality "1"]
[TimeControl "1500+5"]

1. Nf3 {[%emt 0:00:11]} g6 {[%emt 0:00:04]} 2. d4 {[%emt 0:00:06]} Bg7 {[%emt 0:00:01]} 3. Bf4 {[%emt 0:00:02]} Nf6 {[%emt 0:00:03]} 4. h3 {[%emt 0:00:04]} d6 {[%emt 0:00:01]} 5. e3 {[%emt 0:00:03]} O-O {[%emt 0:00:02]} 6. Be2 {[%emt 0:00:02]} Nfd7 {[%emt 0:00:03]} 7. O-O {[%emt 0:00:05]} e5 {[%emt 0:00:01]} 8. Bh2 {[%emt 0:00:01]} Nc6 {[%emt 0:00:05]} 9. c4 {[%emt 0:00:04]} h6 {[%emt 0:00:13]} 10. Nc3 {[%emt 0:00:32]} a6 {[%emt 0:00:31]} 11. Rc1 {[%emt 0:00:07]} Re8 {[%emt 0:00:07]} 12. d5 {[%emt 0:00:17]} Ne7 {[%emt 0:00:03]} 13. e4 {[%emt 0:00:32]} f5 {[%emt 0:00:05]} 14. b4 {[%emt 0:00:52]} Nf6 {[%emt 0:00:08]} 15. Bd3 {[%emt 0:02:03]} f4 {[%emt 0:00:51]} 16. c5 {[%emt 0:00:09]} g5 {[%emt 0:00:04]} 17. Nd2 {[%emt 0:00:09]} h5 {[%emt 0:00:03]} 18. f3 {[%emt 0:00:42]} g4 {[%emt 0:00:08]} 19. fxg4 {[%emt 0:01:17]} hxg4 {[%emt 0:00:03]} 20. g3 {[%emt 0:01:25]} Ng6 {[%emt 0:00:51]} 21. h4 {[%emt 0:02:00]} Nh5 {[%emt 0:00:14]} 22. Qe1 {[%emt 0:01:56]} Bh6 {[%emt 0:00:06]} 23. gxf4 {[%emt 0:01:31]} exf4 {[%emt 0:00:23]} 24. Be2 {[%emt 0:01:25]} Nxh4 {[%emt 0:01:41]} 25. Nc4 {[%emt 0:01:15]} Qg5 {[%emt 0:00:46]} 26. e5 {[%emt 0:00:53]} g3 {[%emt 0:00:05]} 27. Bf3 {[%emt 0:01:00]} Nxf3+ {[%emt 0:01:00]} 28. Rxf3 {[%emt 0:00:15]} Qh4 {[%emt 0:00:17]} 29. Qd2 {[%emt 0:02:38]} Bg4 {[%emt 0:02:51]} 30. Rd3 {[%emt 0:00:22]} f3 {[%emt 0:00:09]} 0-1

[Event "Gaprindashvili Cup Open II Stage 2020"]
[Site "Online"]
[Date "2020.11.08"]
[Round "5.14"]
[White "Tsanatsqenishvili, Giorgi"]
[Black "Tsereteli, Tornike"]
[Result "1-0"]
[ECO "C06"]
[WhiteElo "1631"]
[BlackElo "1765"]
[Annotator "NA RC"]
[PlyCount "99"]
[EventDate "2020.11.04"]
[EventType "swiss"]
[SourceTitle "playchess.com"]
[Source "ChessBase"]
[SourceQuality "1"]
[TimeControl "1500+5"]

1. e4 {[%emt 0:00:03]} e6 {[%emt 0:00:03]} 2. d4 {[%emt 0:00:07]} d5 {[%emt 0:00:03]} 3. Nd2 {[%emt 0:00:01]} Nf6 {[%emt 0:00:02]} 4. e5 {[%emt 0:00:02]} Nfd7 {[%emt 0:00:01]} 5. Bd3 {[%emt 0:00:02]} c5 {[%emt 0:00:01]} 6. c3 {[%emt 0:00:01]} Nc6 {[%emt 0:00:01]} 7. Ne2 {[%emt 0:00:02]} cxd4 {[%emt 0:00:02]} 8. cxd4 {[%emt 0:00:01]} f6 {[%emt 0:00:01]} 9. exf6 {[%emt 0:00:02]} Nxf6 {[%emt 0:00:01]} 10. O-O {[%emt 0:00:03]} Bd6 {[%emt 0:00:02]} 11. Nf3 {[%emt 0:00:01]} O-O {[%emt 0:00:01]} 12. Bg5 {[%emt 0:00:14]} Qc7 {[%emt 0:00:04]} 13. Rc1 {[%emt 0:00:06]} h6 {[%emt 0:00:43]} 14. Bxf6 {[%emt 0:00:32]} Rxf6 {[%emt 0:00:03]} 15. Ng3 {[%emt 0:00:21]} Qf7 {[%emt 0:00:44]} 16. Bb1 {[%emt 0:01:24]} Bd7 {[%emt 0:00:21]} 17. Qd3 {[%emt 0:00:15]} g5 {[%emt 0:00:12]} 18. Rfe1 {[%emt 0:00:52]} Bxg3 {[%emt 0:01:54]} 19. fxg3 {[%emt 0:00:50]} Rf8 {[%emt 0:00:08]} 20. a3 {[%emt 0:00:20]} Qg7 {[%emt 0:00:26]} 21. Ne5 {[%emt 0:04:07]} Be8 {[%emt 0:00:29]} 22. Nxc6 {[%emt 0:00:26]} Bxc6 {[%emt 0:00:09]} 23. Re5 {[%emt 0:00:23]} Qf7 {[%emt 0:00:38]} 24. h3 {[%emt 0:00:21]} a6 {[%emt 0:00:04]} 25. Rce1 {[%emt 0:00:39]} Bd7 {[%emt 0:00:29]} 26. Bc2 {[%emt 0:01:35]} Rf2 {[%emt 0:00:38]} 27. a4 {[%emt 0:02:31]} b5 {[%emt 0:02:02]} 28. b3 {[%emt 0:01:50]} Rc8 {[%emt 0:00:35]} 29. Bd1 {[%emt 0:00:37]} Rc1 {[%emt 0:00:39]} 30. Qe3 {[%emt 0:00:20]} Rxd1 {[%emt 0:01:19]} 31. Rxd1 {[%emt 0:00:03]} Rf6 {[%emt 0:00:04]} 32. axb5 {[%emt 0:00:11]} Bxb5 {[%emt 0:00:03]} 33. Re1 {[%emt 0:00:18]} Bd7 {[%emt 0:00:15]} 34. Qe2 {[%emt 0:00:26]} Bb5 {[%emt 0:00:32]} 35. Qg4 {[%emt 0:00:03]} Bd7 {[%emt 0:00:16]} 36. Kh2 {[%emt 0:00:18]} Kh7 {[%emt 0:00:43]} 37. R1e3 {[%emt 0:00:19]} Rf1 {[%emt 0:00:42]} 38. Rf3 {[%emt 0:00:07]} Rxf3 {[%emt 0:00:02]} 39. Qxf3 {[%emt 0:00:03]} Qxf3 {[%emt 0:00:05]} 40. gxf3 {[%emt 0:00:01]} Kg6 {[%emt 0:00:02]} 41. Kg2 {[%emt 0:00:08]} Kf6 {[%emt 0:00:01]} 42. g4 {[%emt 0:00:13]} Bb5 {[%emt 0:00:03]} 43. Kg3 {[%emt 0:00:06]} Bd3 {[%emt 0:00:05]} 44. Re3 {[%emt 0:00:04]} Bf1 {[%emt 0:00:12]} 45. h4 {[%emt 0:00:03]} Bb5 {[%emt 0:00:11]} 46. f4 {[%emt 0:00:05]} Bd7 {[%emt 0:00:21]} 47. Re1 {[%emt 0:00:08]} gxf4+ {[%emt 0:00:10]} 48. Kxf4 {[%emt 0:00:01]} Bb5 {[%emt 0:00:02]} 49. g5+ {[%emt 0:00:04]} hxg5+ {[%emt 0:00:02]} 50. hxg5+ {[%emt 0:00:02]} 1-0